fUST/lending_fUST_20250719
["ID","MTS","AMOUNT","RATE_DAILY","PERIOD"]
[373157147,1752887471360,-460.0,0.00019178,2]
[373157148,1752887471374,-460.0,0.00019178,2]
[373157149,1752887471384,-460.0,0.00019178,2]
[373157150,1752887471394,-460.0,0.00019178,2]
[373157151,1752887471404,-460.0,0.00019178,2]
[373157152,1752887471413,-460.0,0.00019178,2]
[373157153,1752887471423,-460.0,0.00019178,2]
[373157154,1752887471433,-1489.34,0.00019178,2]
[373157155,1752887471444,-1088.39,0.00019178,2]
[373157156,1752887471453,-460.0,0.00019178,2]
[373157157,1752887471463,-460.0,0.00019178,2]
[373157158,1752887471473,-460.0,0.00019178,2]
[373157159,1752887471483,-460.0,0.00019178,2]
[373157160,1752887471493,-460.0,0.00019178,2]
[373157161,1752887471503,-460.0,0.00019178,2]
[373157162,1752887471513,-600.08095035,0.00019178,2]
[373157163,1752887471523,-460.0,0.00019178,2]
[373157164,1752887471532,-460.0,0.00019178,2]
[373157165,1752887471542,-460.0,0.00019178,2]
[373157166,1752887471551,-1848.28,0.00019178,2]
[373157167,1752887471561,-482.44,0.00019178,2]
[373157168,1752887471571,-464.92,0.00019178,2]
[373157169,1752887471580,-2148.2,0.00019178,2]
[373157170,1752887471590,-460.0,0.00019178,2]
[373157171,1752887471599,-460.0,0.00019178,2]
[373157172,1752887471608,-518.51,0.00019178,2]
[373157173,1752887471620,-545.24,0.00019178,2]
[373157174,1752887471630,-460.0,0.00019178,2]
[373157175,1752887471639,-460.0,0.00019178,2]
[373157176,1752887471649,-3362.66,0.00019178,2]
[373157177,1752887471659,-460.0,0.00019178,2]
[373157178,1752887471668,-460.0,0.00019178,2]
[373157179,1752887471678,-477.85,0.00019178,2]
[373157180,1752887471687,-460.0,0.00019178,2]
[373157181,1752887471697,-838.3,0.00019178,2]
[373157182,1752887471707,-579.24,0.00019178,2]
[373157183,1752887471716,-460.0,0.00019178,2]
[373157184,1752887471726,-460.0,0.00019178,2]
[373157185,1752887471735,-460.0,0.00019178,2]
[373157186,1752887471745,-610.12,0.00019178,2]
[373157187,1752887471754,-460.0,0.00019178,2]
[373157188,1752887471763,-515.52,0.00019178,2]
[373157189,1752887471773,-460.0,0.00019178,2]
[373157190,1752887471785,-503.83,0.00019178,2]
[373157191,1752887471798,-460.0,0.00019178,2]
[373157192,1752887471807,-487.24,0.00019178,2]
[373157193,1752887471817,-4489.86,0.00019178,2]
[373157194,1752887471829,-460.0,0.00019178,2]
[373157195,1752887471839,-460.0,0.00019178,2]
[373157196,1752887471849,-622.41,0.00019178,2]
[373157197,1752887471864,-666.5,0.00019178,2]
[373157198,1752887471875,-460.0,0.00019178,2]
[373157199,1752887471884,-2494.33,0.00019178,2]
[373157200,1752887471894,-151.0,0.00019178,2]
[373157201,1752887471903,-592.03,0.00019178,2]
[373157202,1752887471913,-781.0,0.00019178,2]
[373157203,1752887471924,-777.69,0.00019178,2]
[373157204,1752887471934,-1924.42,0.00019178,2]
[373157205,1752887471943,-496.74,0.00019178,2]
[373157206,1752887471953,-151.0,0.00019178,2]
[373157207,1752887471962,-494.0,0.00019178,2]
[373157208,1752887471971,-460.0,0.00019178,2]
[373157209,1752887471981,-1019.11,0.00019178,2]
[373157210,1752887471990,-460.0,0.00019178,2]
[373157211,1752887471999,-564.63,0.00019178,2]
[373157212,1752887472009,-556.53,0.00019178,2]
[373157213,1752887472019,-541.96,0.00019178,2]
[373157214,1752887472028,-460.0,0.00019178,2]
[373157215,1752887472038,-460.0,0.00019178,2]
[373157216,1752887472047,-1447.51,0.00019178,2]
[373157217,1752887472057,-460.0,0.00019178,2]
[373157218,1752887472066,-460.0,0.00019178,2]
[373157219,1752887472075,-635.79,0.00019178,2]
[373157220,1752887472084,-1371.73,0.00019178,2]
[373157221,1752887472094,-460.0,0.00019178,2]
[373157222,1752887472103,-1999.99,0.00019178,2]
[373157223,1752887472114,-460.0,0.00019178,2]
[373157224,1752887472124,-4634.36,0.00019178,2]
[373157225,1752887472133,-460.0,0.00019178,2]
[373157226,1752887472143,-460.0,0.00019178,2]
[373157227,1752887472152,-460.0,0.00019178,2]
[373157228,1752887472162,-460.0,0.00019178,2]
[373157229,1752887472171,-2972.84,0.00019178,2]
[373157230,1752887472181,-592.47141717,0.00019178,2]
[373157231,1752887472190,-551.48,0.00019178,2]
[373157232,1752887472200,-460.0,0.00019178,2]
[373157233,1752887472209,-5000.0,0.00019178,2]
[373157234,1752887472219,-800.0,0.00019186,2]
[373157235,1752887472228,-2636.49776504,0.00019348,2]
[373157236,1752887472238,-173.52239624,0.00019436,2]
[373157237,1752887472247,-828.36,0.00019452,2]
[373157238,1752887472257,-460.0,0.00019452,2]
[373157239,1752887472268,-460.0,0.00019452,2]
[373157240,1752887472278,-460.0,0.00019452,2]
[373157241,1752887472287,-524.31,0.00019452,2]
[373157242,1752887472297,-460.0,0.00019452,2]
[373157243,1752887472306,-460.0,0.00019452,2]
[373157244,1752887472317,-460.0,0.00019452,2]
[373157245,1752887472327,-460.0,0.00019452,2]
[373157246,1752887472336,-460.0,0.00019452,2]
[373157247,1752887472345,-460.0,0.00019452,2]
[373157248,1752887472355,-460.0,0.00019452,2]
[373157249,1752887472366,-460.0,0.00019452,2]
[373157250,1752887472376,-460.0,0.00019452,2]
[373157251,1752887472386,-460.0,0.00019452,2]
[373157252,1752887472395,-460.0,0.00019452,2]
[373157253,1752887472405,-460.0,0.00019452,2]
[373157254,1752887472529,-460.0,0.00019452,2]
[373157255,1752887472539,-460.0,0.00019452,2]
[373157256,1752887472548,-460.0,0.00019452,2]
[373157257,1752887472557,-559.02,0.00019452,2]
[373157258,1752887472567,-770.38,0.00019452,2]
[373157259,1752887472577,-480.33,0.00019452,2]
[373157260,1752887472586,-460.0,0.00019452,2]
[373157261,1752887472596,-526.17,0.00019452,2]
[373157262,1752887472606,-460.0,0.00019452,2]
[373157263,1752887472619,-460.0,0.00019452,2]
[373157264,1752887472628,-460.0,0.00019452,2]
[373157265,1752887472638,-460.0,0.00019452,2]
[373157266,1752887472647,-460.0,0.00019452,2]
[373157267,1752887472656,-490.15,0.00019452,2]
[373157268,1752887472666,-460.0,0.00019452,2]
[373157269,1752887472675,-151.0,0.00019452,2]
[373157270,1752887472684,-460.0,0.00019452,2]
[373157271,1752887472694,-684.73,0.00019452,2]
[373157272,1752887472703,-281.82270609,0.00019452,2]
[373157273,1752887472713,-151.0,0.00019452,2]
[373157274,1752887472723,-460.0,0.00019452,2]
[373157275,1752887472732,-460.0,0.00019452,2]
[373157276,1752887472741,-460.0,0.00019452,2]
[373157277,1752887472751,-460.0,0.00019452,2]
[373157278,1752887472761,-460.0,0.00019452,2]
[373157279,1752887472771,-460.0,0.00019452,2]
[373157280,1752887472783,-460.0,0.00019452,2]
[373157281,1752887472793,-1199.93098,0.00019452,2]
[373157282,1752887472801,-460.0,0.00019452,2]
[373157283,1752887472811,-1199.93098,0.00019452,2]
[373157284,1752887472821,-1489.34,0.00019452,2]
[373157285,1752887472831,-1088.39,0.00019452,2]
[373157286,1752887472840,-180.64230623,0.00019452,2]
[373157287,1752887472850,-460.0,0.00019452,2]
[373157288,1752887472860,-460.0,0.00019452,2]
[373157289,1752887472874,-460.0,0.00019452,2]
[373157290,1752887472884,-460.0,0.00019452,2]
[373157291,1752887472894,-460.0,0.00019452,2]
[373157292,1752887472904,-460.0,0.00019452,2]
[373157293,1752887472913,-460.0,0.00019452,2]
[373157294,1752887472923,-1848.28,0.00019452,2]
[373157295,1752887472933,-482.44,0.00019452,2]
[373157296,1752887472943,-464.92,0.00019452,2]
[373157297,1752887472952,-2148.2,0.00019452,2]
[373157298,1752887472962,-460.0,0.00019452,2]
[373157299,1752887472971,-518.51,0.00019452,2]
[373157300,1752887472980,-545.24,0.00019452,2]
[373157301,1752887472990,-460.0,0.00019452,2]
[373157302,1752887473000,-300.93070437,0.00019452,2]
[373157303,1752887473009,-3362.66,0.00019452,2]
[373157304,1752887473018,-460.0,0.00019452,2]
[373157305,1752887473028,-460.0,0.00019452,2]
[373157306,1752887473037,-477.85,0.00019452,2]
[373157307,1752887473046,-460.0,0.00019452,2]
[373157308,1752887473056,-838.3,0.00019452,2]
[373157309,1752887473066,-151.0,0.00019452,2]
[373157310,1752887473075,-579.24,0.00019452,2]
[373157311,1752887473085,-460.0,0.00019452,2]
[373157312,1752887473096,-460.0,0.00019452,2]
[373157313,1752887473106,-460.0,0.00019452,2]
[373157314,1752887473120,-610.12,0.00019452,2]
[373157315,1752887473130,-460.0,0.00019452,2]
[373157316,1752887473152,-515.52,0.00019452,2]
[373157317,1752887473162,-460.0,0.00019452,2]
[373157318,1752887473172,-503.83,0.00019452,2]
[373157319,1752887473182,-460.0,0.00019452,2]
[373157320,1752887473192,-487.24,0.00019452,2]
[373157321,1752887473202,-4489.86,0.00019452,2]
[373157322,1752887473212,-460.0,0.00019452,2]
[373157323,1752887473222,-302.26479282,0.00019452,2]
[373157324,1752887473232,-290.266198,0.00019452,2]
[373157325,1752887473242,-622.41,0.00019452,2]
[373157326,1752887473252,-666.5,0.00019452,2]
[373157327,1752887473262,-290.266198,0.00019452,2]
[373157328,1752887473271,-481.45883759,0.00019452,2]
[373157329,1752887473281,-2494.33,0.00019452,2]
[373157330,1752887473291,-592.03,0.00019452,2]
[373157331,1752887473300,-151.0,0.00019452,2]
[373157332,1752887473309,-781.0,0.00019452,2]
[373157333,1752887473319,-777.69,0.00019452,2]
[373157334,1752887473329,-496.74,0.00019452,2]
[373157335,1752887473338,-1924.42,0.00019452,2]
[373157336,1752887473348,-494.0,0.00019452,2]
[373157337,1752887473358,-460.0,0.00019452,2]
[373157338,1752887473371,-1019.11,0.00019452,2]
[373157339,1752887473380,-460.0,0.00019452,2]
[373157340,1752887473389,-564.63,0.00019452,2]
[373157341,1752887473399,-556.53,0.00019452,2]
[373157342,1752887473409,-541.96,0.00019452,2]
[373157343,1752887473418,-460.0,0.00019452,2]
[373157344,1752887473429,-460.0,0.00019452,2]
[373157345,1752887473439,-1447.51,0.00019452,2]
[373157346,1752887473450,-460.0,0.00019452,2]
[373157347,1752887473459,-460.0,0.00019452,2]
[373157348,1752887473469,-635.79,0.00019452,2]
[373157349,1752887473479,-1371.73,0.00019452,2]
[373157350,1752887473488,-460.0,0.00019452,2]
[373157351,1752887473498,-1999.99,0.00019452,2]
[373157352,1752887473508,-460.0,0.00019452,2]
[373157353,1752887473517,-4634.36,0.00019452,2]
[373157354,1752887473527,-460.0,0.00019452,2]
[373157355,1752887473536,-460.0,0.00019452,2]
[373157356,1752887473546,-460.0,0.00019452,2]
[373157357,1752887473555,-460.0,0.00019452,2]
[373157358,1752887473564,-2972.84,0.00019452,2]
[373157359,1752887473574,-551.48,0.00019452,2]
[373157360,1752887473583,-195.20052948,0.00019452,2]
[373157361,1752887473593,-500.0,0.00019459,2]
[373157362,1752887473603,-360.0,0.00019471,2]
[373157363,1752887473612,-588.67267324,0.00019502,2]
[373157364,1752887473625,-7370.11294292,0.00019537,2]
[373157365,1752887473635,-2636.49776504,0.0001959,2]
[373157366,1752887473644,-151.0,0.000196,2]
[373157367,1752887473654,-1974.0,0.00019619,2]
[373157368,1752887473663,-587.0,0.00019631,2]
[373157369,1752887473673,-1500.0,0.00019653,2]
[373157370,1752887473682,-150.0,0.000197,2]
[373157371,1752887473692,-647.0,0.000197,2]
[373157372,1752887473701,-2156.0,0.000197,2]
[373157373,1752887473711,-968.0,0.000197,2]
[373157374,1752887473720,-407.0,0.000197,2]
[373157375,1752887473729,-828.36,0.00019726,2]
[373157376,1752887473739,-460.0,0.00019726,2]
[373157377,1752887473749,-460.0,0.00019726,2]
[373157378,1752887473758,-460.0,0.00019726,2]
[373157379,1752887473767,-524.31,0.00019726,2]
[373157380,1752887473781,-460.0,0.00019726,2]
[373157381,1752887473790,-460.0,0.00019726,2]
[373157382,1752887473799,-460.0,0.00019726,2]
[373157383,1752887473809,-460.0,0.00019726,2]
[373157384,1752887473819,-151.0,0.00019726,2]
[373157385,1752887473828,-198.02717962,0.00019726,2]
[373157386,1752887473837,-151.0,0.00019726,2]
[373157387,1752887473846,-460.0,0.00019726,2]
[373157388,1752887473857,-460.0,0.00019726,2]
[373157389,1752887473869,-460.0,0.00019726,2]
[373157390,1752887473878,-460.0,0.00019726,2]
[373157391,1752887473887,-460.0,0.00019726,2]
[373157392,1752887473896,-460.0,0.00019726,2]
[373157393,1752887473906,-460.0,0.00019726,2]
[373157394,1752887473915,-460.0,0.00019726,2]
[373157395,1752887473924,-559.02,0.00019726,2]
[373157396,1752887473933,-770.38,0.00019726,2]
[373157397,1752887473943,-480.33,0.00019726,2]
[373157398,1752887473952,-460.0,0.00019726,2]
[373157399,1752887473962,-526.17,0.00019726,2]
[373157400,1752887473972,-460.0,0.00019726,2]
[373157401,1752887473981,-460.0,0.00019726,2]
[373157402,1752887473991,-460.0,0.00019726,2]
[373157403,1752887474000,-460.0,0.00019726,2]
[373157404,1752887474010,-460.0,0.00019726,2]
[373157405,1752887474019,-490.15,0.00019726,2]
[373157406,1752887474029,-460.0,0.00019726,2]
[373157407,1752887474039,-460.0,0.00019726,2]
[373157408,1752887474048,-684.73,0.00019726,2]
[373157409,1752887474057,-460.0,0.00019726,2]
[373157410,1752887474067,-460.0,0.00019726,2]
[373157411,1752887474076,-460.0,0.00019726,2]
[373157412,1752887474086,-460.0,0.00019726,2]
[373157413,1752887474096,-460.0,0.00019726,2]
[373157414,1752887474106,-460.0,0.00019726,2]
[373157415,1752887474118,-460.0,0.00019726,2]
[373157416,1752887474127,-460.0,0.00019726,2]
[373157417,1752887474137,-1489.34,0.00019726,2]
[373157418,1752887474146,-1088.39,0.00019726,2]
[373157419,1752887474155,-460.0,0.00019726,2]
[373157420,1752887474165,-460.0,0.00019726,2]
[373157421,1752887474174,-460.0,0.00019726,2]
[373157422,1752887474183,-251.96468072,0.00019726,2]
[373157423,1752887474192,-460.0,0.00019726,2]
[373157424,1752887474206,-460.0,0.00019726,2]
[373157425,1752887474216,-1848.28,0.00019726,2]
[373157426,1752887474226,-482.44,0.00019726,2]
[373157427,1752887474236,-464.92,0.00019726,2]
[373157428,1752887474245,-2148.2,0.00019726,2]
[373157429,1752887474255,-460.0,0.00019726,2]
[373157430,1752887474264,-518.51,0.00019726,2]
[373157431,1752887474277,-545.24,0.00019726,2]
[373157432,1752887474287,-460.0,0.00019726,2]
[373157433,1752887474297,-3362.66,0.00019726,2]
[373157434,1752887474307,-460.0,0.00019726,2]
[373157435,1752887474319,-460.0,0.00019726,2]
[373157436,1752887474335,-477.85,0.00019726,2]
[373157437,1752887474345,-460.0,0.00019726,2]
[373157438,1752887474354,-838.3,0.00019726,2]
[373157439,1752887474363,-579.24,0.00019726,2]
[373157440,1752887474375,-460.0,0.00019726,2]
[373157441,1752887474384,-460.0,0.00019726,2]
[373157442,1752887474393,-460.0,0.00019726,2]
[373157443,1752887474402,-610.12,0.00019726,2]
[373157444,1752887474412,-460.0,0.00019726,2]
[373157445,1752887474421,-515.52,0.00019726,2]
[373157446,1752887474432,-503.83,0.00019726,2]
[373157447,1752887474442,-487.24,0.00019726,2]
[373157448,1752887474451,-4489.86,0.00019726,2]
[373157449,1752887474461,-460.0,0.00019726,2]
[373157450,1752887474471,-622.41,0.00019726,2]
[373157451,1752887474480,-666.5,0.00019726,2]
[373157452,1752887474490,-2494.33,0.00019726,2]
[373157453,1752887474500,-592.03,0.00019726,2]
[373157454,1752887474510,-781.0,0.00019726,2]
[373157455,1752887474520,-777.69,0.00019726,2]
[373157456,1752887474529,-496.74,0.00019726,2]
[373157457,1752887474539,-1924.42,0.00019726,2]
[373157458,1752887474549,-494.0,0.00019726,2]
[373157459,1752887474559,-460.0,0.00019726,2]
[373157460,1752887474568,-1019.11,0.00019726,2]
[373157461,1752887474577,-460.0,0.00019726,2]
[373157462,1752887474587,-564.63,0.00019726,2]
[373157463,1752887474744,-556.53,0.00019726,2]
[373157464,1752887474754,-541.96,0.00019726,2]
[373157465,1752887474764,-460.0,0.00019726,2]
[373157466,1752887474775,-460.0,0.00019726,2]
[373157467,1752887474788,-1447.51,0.00019726,2]
[373157468,1752887474798,-460.0,0.00019726,2]
[373157469,1752887474808,-460.0,0.00019726,2]
[373157470,1752887474818,-635.79,0.00019726,2]
[373157471,1752887474828,-1371.73,0.00019726,2]
[373157472,1752887474839,-460.0,0.00019726,2]
[373157473,1752887474850,-1999.99,0.00019726,2]
[373157474,1752887474860,-460.0,0.00019726,2]
[373157475,1752887474875,-4634.36,0.00019726,2]
[373157476,1752887474884,-460.0,0.00019726,2]
[373157477,1752887474894,-460.0,0.00019726,2]
[373157478,1752887474904,-460.0,0.00019726,2]
[373157479,1752887474914,-460.0,0.00019726,2]
[373157480,1752887474924,-2972.84,0.00019726,2]
[373157481,1752887474935,-551.48,0.00019726,2]
[373157482,1752887474945,-2636.49776504,0.00019831,2]
[373157483,1752887474956,-1298.08837098,0.000199,2]
[373157484,1752887474966,-151.0,0.0002,2]
[373157485,1752887474977,-151.0,0.0002,2]
[373157486,1752887474989,-828.36,0.0002,2]
[373157487,1752887475000,-460.0,0.0002,2]
[373157488,1752887475010,-460.0,0.0002,2]
[373157489,1752887475020,-460.0,0.0002,2]
[373157490,1752887475030,-524.31,0.0002,2]
[373157491,1752887475041,-460.0,0.0002,2]
[373157492,1752887475052,-168.26030665,0.0002,2]
[373157493,1752887475062,-460.0,0.0002,2]
[373157494,1752887475072,-460.0,0.0002,2]
[373157495,1752887475082,-286.94368822,0.0002,2]
[373157496,1752887475092,-460.0,0.0002,2]
[373157497,1752887475102,-557.15,0.0002,2]
[373157498,1752887475112,-460.0,0.0002,2]
[373157499,1752887475125,-460.0,0.0002,2]
[373157500,1752887475134,-460.0,0.0002,2]
[373157501,1752887475144,-407.41580795,0.0002,2]
[373157502,1752887475154,-460.0,0.0002,2]
[373157503,1752887475164,-559.02,0.0002,2]
[373157504,1752887475174,-770.38,0.0002,2]
[373157505,1752887475184,-480.33,0.0002,2]
[373157506,1752887475195,-467.14112684,0.0002,2]
[373157507,1752887475205,-526.17,0.0002,2]
[373157508,1752887475215,-460.0,0.0002,2]
[373157509,1752887475227,-460.0,0.0002,2]
[373157510,1752887475239,-460.0,0.0002,2]
[373157511,1752887475250,-224.677871,0.0002,2]
[373157512,1752887475260,-460.0,0.0002,2]
[373157513,1752887475270,-460.0,0.0002,2]
[373157514,1752887475281,-490.15,0.0002,2]
[373157515,1752887475291,-460.0,0.0002,2]
[373157516,1752887475301,-460.0,0.0002,2]
[373157517,1752887475312,-684.73,0.0002,2]
[373157518,1752887475324,-151.0,0.0002,2]
[373157519,1752887475332,-460.0,0.0002,2]
[373157520,1752887475340,-460.0,0.0002,2]
[373157521,1752887475350,-460.0,0.0002,2]
[373157522,1752887475360,-460.0,0.0002,2]
[373157523,1752887475373,-460.0,0.0002,2]
[373157524,1752887475382,-460.0,0.0002,2]
[373157525,1752887475392,-482.14917301,0.0002,2]
[373157526,1752887475401,-460.0,0.0002,2]
[373157527,1752887475410,-1489.34,0.0002,2]
[373157528,1752887475419,-1088.39,0.0002,2]
[373157529,1752887475429,-460.0,0.0002,2]
[373157530,1752887475439,-460.0,0.0002,2]
[373157531,1752887475449,-460.0,0.0002,2]
[373157532,1752887475459,-460.0,0.0002,2]
[373157533,1752887475469,-460.0,0.0002,2]
[373157534,1752887475479,-1848.28,0.0002,2]
[373157535,1752887475488,-482.44,0.0002,2]
[373157536,1752887475498,-464.92,0.0002,2]
[373157537,1752887475508,-2148.2,0.0002,2]
[373157538,1752887475518,-460.0,0.0002,2]
[373157539,1752887475528,-518.51,0.0002,2]
[373157540,1752887475537,-545.24,0.0002,2]
[373157541,1752887475547,-291.26244911,0.0002,2]
[373157542,1752887475557,-3362.66,0.0002,2]
[373157543,1752887475567,-260.96912658,0.0002,2]
[373157544,1752887475577,-460.0,0.0002,2]
[373157545,1752887475587,-477.85,0.0002,2]
[373157546,1752887475597,-460.0,0.0002,2]
[373157547,1752887475607,-838.3,0.0002,2]
[373157548,1752887475619,-579.24,0.0002,2]
[373157549,1752887475629,-311.5081473,0.0002,2]
[373157550,1752887475638,-460.0,0.0002,2]
[373157551,1752887475648,-460.0,0.0002,2]
[373157552,1752887475658,-610.12,0.0002,2]
[373157553,1752887475674,-410.12000555,0.0002,2]
[373157554,1752887475686,-515.52,0.0002,2]
[373157555,1752887475695,-503.83,0.0002,2]
[373157556,1752887475705,-487.24,0.0002,2]
[373157557,1752887475715,-4489.86,0.0002,2]
[373157558,1752887475724,-460.0,0.0002,2]
[373157559,1752887475733,-622.41,0.0002,2]
[373157560,1752887475743,-666.5,0.0002,2]
[373157561,1752887475752,-2494.33,0.0002,2]
[373157562,1752887475761,-151.0,0.0002,2]
[373157563,1752887475772,-592.03,0.0002,2]
[373157564,1752887475787,-781.0,0.0002,2]
[373157565,1752887475798,-777.69,0.0002,2]
[373157566,1752887475807,-496.74,0.0002,2]
[373157567,1752887475817,-1924.42,0.0002,2]
[373157568,1752887475827,-151.0,0.0002,2]
[373157569,1752887475837,-494.0,0.0002,2]
[373157570,1752887475847,-460.0,0.0002,2]
[373157571,1752887475860,-1019.11,0.0002,2]
[373157572,1752887475871,-460.0,0.0002,2]
[373157573,1752887475881,-564.63,0.0002,2]
[373157574,1752887475891,-556.53,0.0002,2]
[373157575,1752887475902,-541.96,0.0002,2]
[373157576,1752887475911,-460.0,0.0002,2]
[373157577,1752887475921,-460.0,0.0002,2]
[373157578,1752887475931,-1447.51,0.0002,2]
[373157579,1752887475942,-460.0,0.0002,2]
[373157580,1752887475952,-460.0,0.0002,2]
[373157581,1752887475962,-635.79,0.0002,2]
[373157582,1752887475971,-1371.73,0.0002,2]
[373157583,1752887475981,-460.0,0.0002,2]
[373157584,1752887475990,-1999.99,0.0002,2]
[373157585,1752887475999,-460.0,0.0002,2]
[373157586,1752887476011,-4634.36,0.0002,2]
[373157587,1752887476020,-460.0,0.0002,2]
[373157588,1752887476030,-460.0,0.0002,2]
[373157589,1752887476039,-460.0,0.0002,2]
[373157590,1752887476049,-460.0,0.0002,2]
[373157591,1752887476058,-2972.84,0.0002,2]
[373157592,1752887476067,-551.48,0.0002,2]
[373157593,1752887476077,-460.0,0.00020019,2]
[373157594,1752887476087,-207.4,0.00020024,2]
[373157595,1752887476096,-151.0,0.00020024,2]
[373157596,1752887476106,-283.57159003,0.00020024,2]
[373157597,1752887476116,-151.0,0.00020024,2]
[373157598,1752887476129,-3801.642,0.00020024,2]
[373157599,1752887476138,-151.0,0.00020024,2]
[373157600,1752887476148,-151.0,0.00020024,2]
[373157601,1752887476157,-151.0,0.00020024,2]
[373157602,1752887476167,-151.0,0.00020024,2]
[373157603,1752887476176,-151.0,0.00020024,2]
[373157604,1752887476186,-217.07464614,0.00020024,2]
[373157605,1752887476198,-151.0,0.00020024,2]
[373157606,1752887476207,-151.0,0.00020024,2]
[373157607,1752887476217,-151.0,0.00020024,2]
[373157608,1752887476228,-151.0,0.00020024,2]
[373157609,1752887476238,-151.0,0.00020024,2]
[373157610,1752887476248,-151.0,0.00020024,2]
[373157611,1752887476257,-151.0,0.00020024,2]
[373157612,1752887476266,-151.0,0.00020024,2]
[373157613,1752887476277,-151.0,0.00020024,2]
[373157614,1752887476286,-151.0,0.00020024,2]
[373157615,1752887476295,-151.0,0.00020024,2]
[373157616,1752887476306,-151.0,0.00020024,2]
[373157617,1752887476316,-151.0,0.00020024,2]
[373157618,1752887476325,-151.0,0.00020024,2]
[373157619,1752887476336,-25000.0,0.00020024,2]
[373157620,1752887476349,-1000.26175483,0.00020024,2]
[373157621,1752887476359,-2636.49776504,0.00020072,2]
[373157622,1752887476372,-3048.14937814,0.00020079,2]
[373157623,1752887476382,-423.270868,0.00020187,2]
[373157624,1752887476391,-1954.97942182,0.00020201,2]
[373157625,1752887476400,-2354.69069297,0.00020215,2]
[373157626,1752887476410,-7370.11294292,0.0002027,2]
[373157627,1752887476419,-828.36,0.00020273,2]
[373157628,1752887476429,-460.0,0.00020273,2]
[373157629,1752887476439,-460.0,0.00020273,2]
[373157630,1752887476448,-524.31,0.00020273,2]
[373157631,1752887476458,-460.0,0.00020273,2]
[373157632,1752887476468,-460.0,0.00020273,2]
[373157633,1752887476478,-460.0,0.00020273,2]
[373157634,1752887476487,-460.0,0.00020273,2]
[373157635,1752887476497,-460.0,0.00020273,2]
[373157636,1752887476506,-460.0,0.00020273,2]
[373157637,1752887476516,-460.0,0.00020273,2]
[373157638,1752887476527,-559.02,0.00020273,2]
[373157639,1752887476536,-770.38,0.00020273,2]
[373157640,1752887476546,-480.33,0.00020273,2]
[373157641,1752887476555,-526.17,0.00020273,2]
[373157642,1752887476565,-460.0,0.00020273,2]
[373157643,1752887476575,-460.0,0.00020273,2]
[373157644,1752887476584,-460.0,0.00020273,2]
[373157645,1752887476594,-493.82104014,0.00020273,2]
[373157646,1752887476604,-490.15,0.00020273,2]